bitfinex-derivatives/quotes_BTCF0:USTF0_20240830
["timestamp","ask_amount","ask_price","bid_price","bid_amount"]
[1725061129846,0.252,59159.0,59158.0,1.361689]
[1725061130246,0.252,59159.0,59158.0,0.761689]
[1725061130948,0.252,59159.0,59158.0,0.254569]
[1725061132051,0.252,59159.0,59158.0,0.344569]
[1725061132250,0.252,59159.0,59158.0,0.705369]
[1725061133262,0.252,59159.0,59158.0,0.615369]
[1725061133550,0.252,59159.0,59158.0,0.705369]
[1725061136853,0.252,59159.0,59158.0,0.615369]
[1725061137053,0.252,59159.0,59158.0,0.705369]
[1725061139166,0.252,59159.0,59158.0,0.344569]
[1725061139353,0.252,59159.0,59158.0,0.705369]
[1725061141457,0.252,59159.0,59158.0,0.344569]
[1725061141657,0.252,59159.0,59158.0,0.705369]
[1725061142962,0.252,59159.0,59158.0,0.344569]
[1725061143170,0.252,59159.0,59158.0,0.705369]
[1725061143661,0.069578,59159.0,59158.0,0.789892]
[1725061143961,0.00025347,59164.0,59163.0,0.253548]
[1725061144167,0.00025347,59164.0,59163.0,0.343548]
[1725061144168,0.11025347,59164.0,59163.0,0.343548]
[1725061145168,0.21225347,59164.0,59163.0,0.705348]
[1725061148060,0.21225347,59164.0,59163.0,0.620832]
[1725061149664,0.21225347,59164.0,59163.0,0.55954561]
[1725061150072,0.21225347,59164.0,59163.0,0.64954561]
[1725061150258,0.21225347,59164.0,59163.0,0.56502961]
[1725061150770,0.21225347,59164.0,59163.0,0.47502961]
[1725061151762,0.21225347,59164.0,59163.0,0.56502961]
[1725061153372,0.21225347,59164.0,59163.0,0.20422961]
[1725061157572,0.29676847,59164.0,59163.0,0.02971361]
[1725061158573,0.29676847,59164.0,59163.0,0.11422961]
[1725061164779,0.65756847,59164.0,59163.0,0.11422961]
[1725061168575,0.65756847,59164.0,59163.0,0.02971361]
[1725061168882,0.74208347,59164.0,59163.0,0.02971361]
[1725061171983,0.38128347,59164.0,59163.0,0.02971361]
[1725061172179,0.74208347,59164.0,59163.0,0.02971361]
[1725061172889,0.74208347,59164.0,59163.0,0.11422961]
[1725061175691,0.38128347,59164.0,59163.0,0.11422961]
[1725061175893,0.74208347,59164.0,59163.0,0.11422961]
[1725061179504,0.38128347,59164.0,59163.0,0.11422961]
[1725061179693,0.74208347,59164.0,59163.0,0.11422961]
[1725061183701,0.38128347,59164.0,59163.0,0.11422961]
[1725061184100,0.74208347,59164.0,59163.0,0.11422961]
[1725061186007,0.38128347,59164.0,59163.0,0.11422961]
[1725061186208,0.74208347,59164.0,59163.0,0.11422961]
[1725061189509,0.65756847,59164.0,59163.0,0.11422961]
[1725061191809,0.29676847,59164.0,59163.0,0.11422961]
[1725061192013,0.65756847,59164.0,59163.0,0.11422961]
[1725061193000,0.65756847,59164.0,59163.0,0.02971361]
[1725061193410,0.74208347,59164.0,59163.0,0.02971361]
[1725061193907,0.65756847,59164.0,59163.0,0.02971361]
[1725061194111,0.74756847,59164.0,59163.0,0.02971361]
[1725061194315,0.83208347,59164.0,59163.0,0.02971361]
[1725061196115,0.47128347,59164.0,59163.0,0.02971361]
[1725061196316,0.83208347,59164.0,59163.0,0.02971361]
[1725061197820,0.91659847,59164.0,59163.0,0.001]
[1725061198205,0.83208347,59164.0,59163.0,0.001]
[1725061199107,0.8611981,59164.0,59163.0,0.001]
[1725061200213,0.76482905,59164.0,59163.0,0.001]
[1725061209516,0.67482905,59164.0,59163.0,0.001]
[1725061209711,0.76482905,59164.0,59163.0,0.001]
[1725061211519,0.64571442,59164.0,59163.0,0.001]
[1725061211823,0.56119942,59164.0,59163.0,0.001]
[1725061212010,0.64571442,59164.0,59163.0,0.001]
[1725061216713,0.64671442,59164.0,59163.0,0.001]
[1725061217519,0.081522,59159.0,59158.0,0.08477647]
[1725061217715,0.652322,59159.0,59158.0,0.08477647]
[1725061218226,0.66081555,59159.0,59158.0,0.08477647]
[1725061218626,0.66181555,59159.0,59158.0,0.08777647]
[1725061218926,0.66281555,59159.0,59158.0,0.1158117]
[1725061220324,0.74733755,59159.0,59158.0,0.0312887]
[1725061221323,0.83733755,59159.0,59158.0,0.0312887]
[1725061222716,0.83733755,59159.0,59158.0,0.00325347]
[1725061224322,0.8657533,59159.0,59158.0,0.00325347]
[1725061224924,0.5049533,59159.0,59158.0,0.00325347]
[1725061225117,0.8657533,59159.0,59158.0,0.00325347]
[1725061226426,0.9502753,59159.0,59158.0,0.00325347]
[1725061226827,0.16907,59150.0,59149.0,0.046]
[1725061227132,0.084543,59144.0,59143.0,0.084544]
[1725061227429,0.334543,59144.0,59143.0,0.084544]
[1725061227832,0.334543,59144.0,59143.0,0.174544]
[1725061228330,0.334543,59144.0,59143.0,0.084544]
[1725061229022,0.335543,59144.0,59143.0,0.084544]
[1725061229430,0.251,59144.0,59143.0,0.084544]
[1725061230222,0.252,59144.0,59143.0,0.084544]
[1725061230427,0.11063445,59144.0,59143.0,0.084544]
[1725061231035,0.47143445,59144.0,59143.0,0.084544]
[1725061236232,0.00025347,59149.0,59143.0,1.10724]
[1725061236540,0.04025347,59149.0,59148.0,0.253611]
[1725061236737,0.04025347,59149.0,59148.0,0.853611]
[1725061236937,0.04025347,59149.0,59148.0,1.360811]
[1725061237328,0.3608,59162.0,59161.0,0.084519]
[1725061237527,0.6108,59162.0,59161.0,0.174519]
[1725061238639,0.6118,59162.0,59161.0,0.174519]
[1725061239625,0.131,59162.0,59161.0,0.766118]
[1725061239830,0.001,59162.0,59161.0,0.259038]
[1725061240034,0.021,59162.0,59161.0,0.766118]
[1725061240834,0.022,59162.0,59161.0,0.766118]
[1725061241040,0.022,59162.0,59161.0,0.79505021]
[1725061241334,0.022,59162.0,59161.0,0.20345121]
[1725061241638,0.152,59162.0,59161.0,0.20345121]
[1725061245537,0.152,59162.0,59161.0,0.56425121]
[1725061247748,0.152,59162.0,59161.0,0.20345121]
[1725061249244,0.151,59162.0,59161.0,0.20345121]
[1725061249446,0.152,59162.0,59161.0,0.20345121]
[1725061250060,0.151,59162.0,59161.0,0.20345121]
[1725061250345,0.152,59162.0,59161.0,0.20345121]
[1725061251745,0.152,59162.0,59161.0,0.56425121]
[1725061255140,0.152,59162.0,59161.0,0.64877021]
[1725061255345,0.152,59162.0,59161.0,0.56425121]
[1725061257062,0.152,59162.0,59161.0,0.64877021]
[1725061258051,0.152,59162.0,59161.0,0.56425121]
[1725061259049,0.152,59162.0,59161.0,0.64877021]
[1725061259253,0.152,59162.0,59161.0,0.56425121]
[1725061264052,0.152,59162.0,59161.0,0.20345121]
[1725061265961,0.152,59162.0,59161.0,0.56425121]
[1725061267156,0.152,59162.0,59161.0,0.20345121]
[1725061267462,0.152,59162.0,59161.0,0.56425121]
[1725061269659,0.152,59162.0,59161.0,0.20345121]
[1725061269855,0.152,59162.0,59161.0,0.56425121]
[1725061270059,0.152,59162.0,59161.0,0.11345121]
[1725061270261,0.084522,59160.0,59159.0,0.084521]
[1725061270567,0.324522,59160.0,59159.0,0.084521]
[1725061271764,0.325522,59160.0,59159.0,0.090521]
[1725061272165,0.326522,59160.0,59159.0,0.093521]
[1725061277461,0.416522,59160.0,59159.0,0.093521]
[1725061279863,0.501044,59160.0,59159.0,0.009]
[1725061297287,0.504044,59160.0,59159.0,0.003]
[1725061297491,0.084523,59158.0,59157.0,0.084524]
[1725061297786,0.31302847,59158.0,59157.0,0.084524]
[1725061298790,0.31502847,59158.0,59157.0,0.084524]
[1725061299092,0.31702847,59158.0,59157.0,0.084524]
[1725061316816,0.31702847,59158.0,59157.0,0.169049]
[1725061316817,0.224,59158.0,59157.0,0.169049]
[1725061318697,0.224,59158.0,59157.0,0.084524]
[1725061321095,0.224,59158.0,59157.0,0.169049]
[1725061321292,0.224,59158.0,59157.0,0.263849]
[1725061321500,0.114,59158.0,59157.0,0.263849]
[1725061321704,0.004,59158.0,59157.0,1.370969]
[1725061322396,0.136,59180.0,59166.0,0.169024]
[1725061322696,0.05025347,59167.0,59166.0,0.980624]
[1725061323601,0.06225347,59167.0,59166.0,0.980624]
[1725061324308,0.07425347,59167.0,59166.0,0.981624]
[1725061324508,0.06525347,59167.0,59166.0,0.981624]
[1725061324709,0.06525347,59167.0,59166.0,0.980624]
[1725061324710,0.05325347,59167.0,59166.0,0.980624]
[1725061324911,0.05625347,59167.0,59166.0,0.980624]
[1725061326401,0.05625347,59167.0,59166.0,1.00954175]
[1725061327797,0.05225347,59167.0,59166.0,1.02354175]
[1725061328506,0.05225347,59167.0,59166.0,1.02254175]
[1725061329613,0.05225347,59167.0,59166.0,1.02054175]
[1725061330015,0.05125347,59167.0,59166.0,0.29294175]
[1725061330204,0.05225347,59167.0,59166.0,1.02054175]
[1725061331311,0.05225347,59167.0,59166.0,1.01554175]
[1725061331312,0.05125347,59167.0,59166.0,1.01554175]
[1725061331616,0.05225347,59167.0,59166.0,0.29894175]
[1725061331819,0.05225347,59167.0,59166.0,1.02054175]
[1725061332109,0.05225347,59167.0,59166.0,0.29894175]
[1725061332310,0.05225347,59167.0,59166.0,1.02054175]
[1725061333313,0.05125347,59167.0,59166.0,1.01454175]
[1725061333613,0.05225347,59167.0,59166.0,1.02054175]
[1725061334522,0.03927028,59174.0,59173.0,0.084502]
[1725061334707,0.1945,59174.0,59173.0,0.174502]
[1725061336704,0.3245,59174.0,59173.0,0.174502]
[1725061337114,0.3275,59174.0,59173.0,0.174502]
[1725061337815,0.3305,59174.0,59173.0,0.174502]
[1725061339809,0.3315,59174.0,59173.0,0.174502]
[1725061340206,0.3315,59174.0,59173.0,0.20286961]
[1725061341420,0.3305,59174.0,59173.0,0.20286961]
[1725061342912,0.3275,59174.0,59173.0,0.20286961]
[1725061343117,0.3315,59174.0,59173.0,0.20286961]
[1725061343711,0.3305,59174.0,59173.0,0.20286961]
[1725061344214,0.3285,59174.0,59173.0,0.20286961]
[1725061344415,0.3275,59174.0,59173.0,0.20286961]
[1725061344720,0.3305,59174.0,59173.0,0.20286961]
[1725061346617,0.3275,59174.0,59173.0,0.20286961]
[1725061346817,0.3295,59174.0,59173.0,0.20286961]
[1725061348021,0.3275,59174.0,59173.0,0.20286961]
[1725061348222,0.3305,59174.0,59173.0,0.20286961]
[1725061349317,0.3275,59174.0,59173.0,0.20286961]
[1725061349518,0.3315,59174.0,59173.0,0.20286961]
[1725061350421,0.3325,59174.0,59173.0,0.20286961]
[1725061360430,0.3335,59174.0,59173.0,0.20386961]
[1725061360737,0.3345,59174.0,59173.0,0.20486961]
[1725061361120,0.3295,59174.0,59173.0,0.20386961]
[1725061361320,0.3335,59174.0,59173.0,0.20386961]
[1725061362021,0.3285,59174.0,59173.0,0.20286961]
[1725061362220,0.3325,59174.0,59173.0,0.20286961]
[1725061362629,0.3285,59174.0,59173.0,0.20286961]
[1725061362826,0.3345,59174.0,59173.0,0.20486961]
[1725061363228,0.3295,59174.0,59173.0,0.20386961]
[1725061363532,0.3335,59174.0,59173.0,0.20386961]
[1725061364437,0.3345,59174.0,59173.0,0.20386961]
[1725061364933,0.3355,59174.0,59173.0,0.20486961]
[1725061365740,0.3365,59174.0,59173.0,0.20486961]
[1725061371739,0.3365,59174.0,59173.0,0.11486961]
[1725061373737,0.202,59174.0,59173.0,0.11486961]
[1725061373933,0.2865,59174.0,59173.0,0.11486961]
[1725061376038,0.6473,59174.0,59173.0,0.11486961]
[1725061386553,0.202,59174.0,59173.0,0.20486961]
[1725061386751,0.202,59174.0,59173.0,0.28937161]
[1725061386949,0.142,59174.0,59173.0,1.39637161]
[1725061388451,0.142,59174.0,59173.0,0.11486961]
[1725061388656,0.2865,59174.0,59173.0,0.03036761]
[1725061388956,0.2865,59174.0,59173.0,0.002]
[1725061392171,0.31506262,59174.0,59173.0,0.002]
[1725061396462,0.2865,59174.0,59173.0,0.086502]
[1725061396665,0.2865,59174.0,59173.0,0.176502]
[1725061396870,0.202,59174.0,59173.0,0.176502]
[1725061397065,0.142,59174.0,59173.0,1.511304]
[1725061397972,0.142,59174.0,59173.0,1.595806]
[1725061399360,0.142,59174.0,59173.0,0.995806]
[1725061399755,0.142,59174.0,59173.0,0.488806]
[1725061399957,0.242,59174.0,59173.0,0.261004]
[1725061400157,0.242,59174.0,59173.0,0.768004]
[1725061400356,0.242,59174.0,59173.0,0.261004]
[1725061400758,0.242,59174.0,59173.0,0.768004]
[1725061402561,0.242,59174.0,59173.0,1.128804]
[1725061404772,0.242,59174.0,59173.0,0.531804]
[1725061405071,0.242,59174.0,59173.0,0.621804]
[1725061405569,0.242,59174.0,59173.0,0.261004]
[1725061405770,0.242,59174.0,59173.0,0.176502]
[1725061407790,0.242,59174.0,59173.0,0.086502]
[1725061408275,0.236,59174.0,59173.0,0.087502]
[1725061408862,0.23,59174.0,59173.0,0.086502]
[1725061409169,0.231,59174.0,59173.0,0.087502]
[1725061409670,0.232,59174.0,59173.0,0.084502]
[1725061410275,0.084505,59171.0,59170.0,0.11360745]
[1725061410475,0.344505,59171.0,59170.0,0.084505]
[1725061410679,0.434505,59171.0,59170.0,0.084505]
[1725061410875,0.424505,59171.0,59170.0,0.084505]
[1725061412369,0.425505,59171.0,59170.0,0.084505]
[1725061412573,0.426505,59171.0,59170.0,0.084505]
[1725061412772,1.893306,59171.0,59153.0,0.08453]
[1725061413085,0.09,59158.0,59153.0,0.09]
[1725061413386,0.32,59158.0,59157.0,0.084525]
[1725061414885,0.084525,59157.0,59156.0,0.009]
[1725061415178,0.404525,59157.0,59156.0,0.009]
[1725061415570,0.075535,59150.0,59147.0,0.09]
[1725061415782,0.077536,59149.0,59147.0,0.09]
[1725061415973,0.207536,59149.0,59147.0,0.09]
[1725061416279,0.207536,59149.0,59143.0,0.00025347]
[1725061416280,0.13,59149.0,59143.0,0.00025347]
[1725061416474,0.174543,59144.0,59143.0,0.00025347]
[1725061416676,0.499086,59144.0,59143.0,0.00025347]
[1725061416882,0.6008,59144.0,59124.0,0.08457]
[1725061417083,0.4508,59128.0,59127.0,0.084567]
[1725061417272,0.3608,59128.0,59127.0,0.084567]
[1725061417576,0.4208,59128.0,59127.0,0.084567]
[1725061418180,0.00025347,59133.0,59131.0,0.08456]
[1725061418386,0.05025347,59133.0,59132.0,0.16]
[1725061418687,0.04925347,59133.0,59132.0,0.16]
[1725061419589,0.001,59133.0,59132.0,0.24456]
[1725061419884,0.062,59133.0,59132.0,0.24456]
[1725061420580,0.062,59133.0,59132.0,0.08456]
[1725061421386,0.142,59133.0,59132.0,0.08456]
[1725061422194,0.302,59133.0,59132.0,0.08456]
[1725061422885,0.142,59133.0,59132.0,0.08456]
[1725061434600,0.142,59133.0,59132.0,0.16912]
[1725061435999,0.142,59133.0,59132.0,0.32912]
[1725061438297,0.142,59133.0,59132.0,0.25912]
[1725061439107,0.24268169,59139.0,59138.0,0.084552]
[1725061439310,0.174549,59140.0,59139.0,0.08455]
[1725061439505,0.394549,59140.0,59139.0,0.08455]
[1725061439904,0.22,59140.0,59139.0,0.08455]
[1725061440810,0.11,59140.0,59139.0,0.34365]
[1725061441010,0.111,59140.0,59139.0,0.34365]
[1725061441204,0.112,59140.0,59139.0,0.34365]
[1725061441709,0.132,59140.0,59139.0,0.34365]
[1725061442502,0.112,59140.0,59139.0,0.34365]
[1725061442701,0.112,59140.0,59139.0,0.1691]
[1725061442908,0.112,59140.0,59139.0,0.2591]
[1725061443207,0.112,59140.0,59139.0,0.28665063]
[1725061443596,0.222,59140.0,59139.0,0.28665063]
[1725061443998,0.002,59140.0,59139.0,0.37120063]
[1725061444309,0.00025347,59145.0,59144.0,0.169086]
[1725061444512,4.7e-07,59145.0,59144.0,0.704429]
[1725061444811,4.7e-07,59145.0,59144.0,1.727126]
[1725061445312,4.7e-07,59145.0,59144.0,1.819626]
[1725061445904,4.7e-07,59145.0,59144.0,1.821626]
[1725061446103,4.7e-07,59145.0,59144.0,1.221626]
[1725061446299,4.7e-07,59145.0,59144.0,1.291626]
[1725061451305,0.10000047,59145.0,59144.0,1.291626]
[1725061451504,4.7e-07,59145.0,59144.0,1.291626]
[1725061453200,4.7e-07,59145.0,59144.0,1.376169]
[1725061454211,0.02000047,59145.0,59144.0,1.376169]
[1725061457900,0.02000047,59145.0,59144.0,1.976169]
[1725061459303,0.02000047,59145.0,59144.0,1.376169]
[1725061459727,0.02000047,59145.0,59144.0,1.329669]
[1725061461208,0.02000047,59145.0,59144.0,0.822429]
[1725061461415,0.05000047,59145.0,59144.0,1.329669]
[1725061461610,0.05000047,59145.0,59144.0,0.822429]
[1725061461917,0.05000047,59145.0,59144.0,1.329669]
[1725061462114,0.05000047,59145.0,59144.0,0.822429]
[1725061462313,0.05000047,59145.0,59144.0,1.329669]
[1725061462515,0.05000047,59145.0,59144.0,0.822429]
[1725061462718,4.7e-07,59145.0,59144.0,1.329669]
[1725061466221,4.7e-07,59145.0,59144.0,0.752429]
[1725061468721,4.7e-07,59145.0,59144.0,0.391629]
[1725061468922,4.7e-07,59145.0,59144.0,1.113229]
[1725061470927,4.7e-07,59145.0,59144.0,0.391629]
[1725061471228,4.7e-07,59145.0,59144.0,1.067229]
[1725061471229,0.12000047,59145.0,59144.0,1.067229]
[1725061473423,0.05000047,59145.0,59144.0,1.067229]
[1725061475223,4.7e-07,59145.0,59144.0,1.067229]
[1725061475423,0.05000047,59145.0,59144.0,1.067229]
[1725061475816,0.0951,59150.0,59149.0,0.084536]
[1725061476023,0.2051,59150.0,59149.0,0.619872]
[1725061477230,0.2091,59150.0,59149.0,0.619872]
[1725061477431,0.2091,59150.0,59149.0,0.259072]
[1725061477629,0.2121,59150.0,59149.0,0.980672]
[1725061478429,0.2121,59150.0,59149.0,0.259072]
[1725061478630,0.2121,59150.0,59149.0,0.980672]
[1725061479728,0.2821,59150.0,59149.0,0.980672]
[1725061480035,0.2121,59150.0,59149.0,0.980672]
[1725061481430,0.2121,59150.0,59149.0,1.065208]
[1725061481731,0.057,59150.0,59149.0,1.149744]
[1725061481931,0.00025347,59155.0,59154.0,0.253587]
[1725061482241,0.0963,59161.0,59160.0,0.16904]
[1725061482242,0.2663,59161.0,59160.0,0.16904]
[1725061482421,0.2663,59161.0,59160.0,0.61984]
[1725061482422,0.2063,59161.0,59160.0,0.61984]
[1725061483034,0.1592,59161.0,59160.0,0.61984]
[1725061483233,0.11,59161.0,59160.0,0.61984]
[1725061483428,0.00025347,59166.0,59165.0,0.169026]
[1725061483631,0.00025347,59166.0,59165.0,0.619826]
[1725061485325,0.00025347,59166.0,59165.0,0.64639995]
[1725061485725,0.05025347,59166.0,59165.0,0.64639995]
[1725061485933,0.05025347,59166.0,59165.0,0.65139995]
[1725061485934,0.04125347,59166.0,59165.0,0.65139995]
[1725061486133,0.13225347,59166.0,59165.0,0.48388695]
[1725061486336,1.32929347,59166.0,59165.0,0.39937395]
[1725061486633,1.21929347,59166.0,59165.0,0.3728]
[1725061487232,0.61929347,59166.0,59165.0,0.3728]
[1725061487831,1.21929347,59166.0,59165.0,0.3728]
[1725061488421,0.61929347,59166.0,59165.0,0.3728]
[1725061490032,1.21929347,59166.0,59165.0,0.3728]
[1725061490234,0.61929347,59166.0,59165.0,0.3728]
[1725061490632,0.61929347,59166.0,59165.0,0.012]
[1725061491429,0.61929347,59166.0,59165.0,0.096513]
[1725061491639,0.70380547,59166.0,59165.0,0.096513]
[1725061497250,0.19676547,59166.0,59165.0,0.096513]
[1725061502942,0.28127747,59166.0,59165.0,0.012]
[1725061503251,0.64207747,59166.0,59165.0,0.012]
[1725061504953,0.64207747,59166.0,59165.0,0.001]
[1725061504954,0.65107747,59166.0,59165.0,0.001]
[1725061505952,0.083517,59162.0,59161.0,0.084519]
[1725061506144,0.303517,59162.0,59161.0,0.084519]
[1725061507554,0.307517,59162.0,59161.0,0.084519]
[1725061507754,0.307517,59162.0,59161.0,0.11098715]
[1725061508153,0.312517,59162.0,59161.0,0.11098715]
[1725061508351,0.402517,59162.0,59161.0,0.11098715]
[1725061511057,0.402517,59162.0,59161.0,0.47178715]
[1725061511659,0.402517,59162.0,59161.0,0.56178715]
[1725061511660,0.229,59162.0,59161.0,0.56178715]
[1725061512060,0.229,59162.0,59161.0,0.60918715]
[1725061513069,0.226,59162.0,59161.0,0.60918715]
[1725061513670,0.221,59162.0,59161.0,0.60918715]
[1725061513872,0.222,59162.0,59161.0,0.60918715]
[1725061516369,0.22020378,59162.0,59161.0,0.65778715]
[1725061522079,0.22020378,59162.0,59161.0,0.29698715]
[1725061522270,0.31020378,59162.0,59161.0,0.02646815]
[1725061522468,0.31020378,59162.0,59160.0,0.00025347]
[1725061522469,0.084519,59161.0,59160.0,0.00025347]
[1725061522673,0.447019,59161.0,59160.0,0.00025347]
[1725061523270,1.038618,59161.0,59160.0,0.00025347]
[1725061523581,0.954099,59161.0,59160.0,0.00025347]
[1725061524389,0.084534,59151.0,59150.0,0.084535]
[1725061524569,0.414534,59151.0,59150.0,0.084535]
[1725061525371,0.084536,59149.0,59148.0,0.02683114]
[1725061525572,0.084536,59149.0,59145.0,0.084542]
[1725061525573,0.08454,59147.0,59145.0,0.084542]
[1725061525779,0.09,59146.0,59145.0,0.084542]
[1725061525976,0.33,59146.0,59145.0,0.084542]
[1725061526273,0.327,59146.0,59145.0,0.084542]
[1725061526481,0.33,59146.0,59145.0,0.084542]
[1725061526872,0.084543,59144.0,59143.0,0.00025347]
[1725061527183,0.285543,59144.0,59143.0,0.00025347]
[1725061528870,0.211,59144.0,59143.0,0.45105347]
[1725061529075,0.211,59144.0,59143.0,0.53559847]
[1725061529479,0.212,59144.0,59143.0,0.53559847]
[1725061530169,0.212,59144.0,59143.0,0.60559847]
[1725061534178,0.33678481,59150.0,59145.0,0.084541]
[1725061534379,0.324535,59150.0,59145.0,0.084541]
[1725061534578,0.324535,59150.0,59146.0,0.08454]
[1725061535376,0.325535,59150.0,59146.0,0.08454]
[1725061535577,0.326535,59150.0,59146.0,0.08454]
[1725061535977,0.325535,59150.0,59146.0,0.08454]
[1725061536280,0.326535,59150.0,59146.0,0.08454]
[1725061536478,0.1418,59149.0,59146.0,0.08454]
[1725061536689,0.3718,59149.0,59146.0,0.08454]
[1725061537278,0.3718,59149.0,59147.0,0.084538]
[1725061537976,0.3728,59149.0,59147.0,0.084538]
[1725061538989,0.3738,59149.0,59148.0,0.084537]
[1725061540987,0.3728,59149.0,59148.0,0.084537]
[1725061541187,0.3738,59149.0,59148.0,0.084537]
[1725061543189,0.232,59149.0,59148.0,0.084537]
[1725061546189,0.232,59149.0,59148.0,0.11188126]
[1725061550201,0.322,59149.0,59148.0,0.11188126]
[1725061552192,0.084543,59144.0,59143.0,0.00025347]
[1725061552393,0.314543,59144.0,59143.0,0.00025347]
[1725061553300,0.23,59144.0,59143.0,0.00025347]
[1725061553490,0.231,59144.0,59143.0,0.00025347]
[1725061554107,0.232,59144.0,59143.0,0.00025347]
[1725061556412,0.232,59144.0,59143.0,0.45105347]
[1725061556705,0.232,59144.0,59143.0,0.36105347]
[1725061558996,0.232,59144.0,59143.0,0.44559847]
[1725061570608,0.316543,59144.0,59143.0,0.36105347]
[1725061571108,0.410843,59144.0,59143.0,0.36105347]
[1725061573815,0.410843,59144.0,59143.0,0.00025347]
[1725061574913,0.362343,59144.0,59143.0,0.00025347]
[1725061575111,0.316543,59144.0,59143.0,0.00025347]
[1725061578819,0.316543,59144.0,59143.0,0.08479847]
[1725061579810,0.316543,59144.0,59143.0,0.17479847]
[1725061580931,0.316543,59144.0,59143.0,0.08479847]
[1725061586618,0.232,59144.0,59143.0,0.17479847]
[1725061589032,0.232,59144.0,59143.0,0.08479847]
[1725061601332,0.232,59144.0,59143.0,0.17479847]
[1725061603434,0.232,59144.0,59143.0,0.53559847]
[1725061604134,0.232,59144.0,59143.0,0.17479847]
[1725061604333,0.232,59144.0,59143.0,0.53559847]
[1725061608746,0.232,59144.0,59143.0,0.62014347]
[1725061612246,0.3289173,59150.0,59149.0,0.084536]
[1725061612450,0.25733405,59155.0,59152.0,0.084531]
[1725061612647,0.47733405,59155.0,59149.0,0.09]
[1725061613144,0.30280605,59155.0,59154.0,0.084529]
[1725061613735,0.30380605,59155.0,59154.0,0.084529]
[1725061614346,0.30380605,59155.0,59154.0,0.445329]
[1725061614347,0.221,59155.0,59154.0,0.445329]
[1725061614841,0.222,59155.0,59154.0,0.445329]
[1725061615241,0.221,59155.0,59154.0,0.445329]
[1725061615447,0.111,59155.0,59154.0,0.529858]
[1725061615746,0.111,59155.0,59154.0,1.66392624]
[1725061615942,0.001,59155.0,59154.0,1.66392624]
[1725061616137,0.00025347,59160.0,59154.0,1.57939724]
[1725061616340,0.00025347,59160.0,59159.0,0.535322]
[1725061616341,0.12025347,59160.0,59159.0,0.535322]
[1725061617643,0.27025347,59160.0,59154.0,0.38770824]
[1725061617945,0.27025347,59160.0,59155.0,0.09]
[1725061618445,0.27325347,59160.0,59155.0,0.09]
[1725061618847,0.27025347,59160.0,59158.0,0.084523]
[1725061619348,0.27225347,59160.0,59158.0,0.084523]
[1725061620041,0.27125347,59160.0,59158.0,0.084523]
[1725061621342,0.27325347,59160.0,59158.0,0.084523]
[1725061621846,0.18325347,59160.0,59158.0,0.174523]
[1725061623643,0.18325347,59160.0,59158.0,0.20123975]
[1725061624848,0.18325347,59160.0,59159.0,0.084522]
[1725061626050,0.18425347,59160.0,59159.0,0.084522]
[1725061626248,0.18525347,59160.0,59159.0,0.084522]
[1725061636759,0.18525347,59160.0,59159.0,0.535322]
[1725061643571,0.12525347,59160.0,59159.0,0.619844]
[1725061643766,0.22525347,59160.0,59159.0,0.619844]
[1725061647364,0.22525347,59160.0,59159.0,0.259044]
[1725061647566,0.22525347,59160.0,59159.0,0.619844]
[1725061647971,0.22525347,59160.0,59159.0,0.259044]
[1725061648170,0.22525347,59160.0,59159.0,0.619844]
[1725061648864,0.22525347,59160.0,59159.0,0.259044]
[1725061649064,0.22525347,59160.0,59159.0,0.619844]
[1725061649465,0.22525347,59160.0,59159.0,0.259044]
[1725061649770,0.22525347,59160.0,59159.0,0.619844]
[1725061650672,0.22525347,59160.0,59159.0,0.669644]
[1725061652766,0.22525347,59160.0,59159.0,0.754166]
[1725061652968,0.12525347,59160.0,59159.0,0.803766]
[1725061655968,0.26977347,59160.0,59159.0,0.3608]
[1725061656463,0.26977347,59160.0,59152.0,0.084531]
[1725061656464,0.084526,59156.0,59152.0,0.084531]
[1725061656667,0.096,59155.0,59152.0,0.084531]
[1725061656863,0.326,59155.0,59152.0,0.11233474]
[1725061657467,0.326,59155.0,59154.0,0.09]
[1725061657867,0.327,59155.0,59154.0,0.09]
[1725061658464,0.326,59155.0,59154.0,0.09]
[1725061660873,0.410527,59155.0,59154.0,0.09]
[1725061661080,0.08453,59153.0,59152.0,0.02780374]
[1725061661276,0.08453,59153.0,59149.0,0.174535]
[1725061661277,0.084532,59152.0,59149.0,0.174535]
[1725061661480,0.22,59152.0,59149.0,0.174535]
[1725061662676,0.084533,59151.0,59149.0,0.174535]
[1725061662864,0.304533,59151.0,59149.0,0.174535]
[1725061663469,0.304533,59151.0,59150.0,0.09]
[1725061664369,0.305533,59151.0,59150.0,0.09]
[1725061664979,0.306533,59151.0,59150.0,0.09]
[1725061669076,0.306533,59151.0,59150.0,0.174535]
[1725061675777,0.306533,59151.0,59150.0,0.084535]
[1725061675981,0.306533,59151.0,59150.0,0.174535]
[1725061677586,0.084536,59149.0,59148.0,0.38817829]
[1725061677794,0.479072,59149.0,59148.0,0.02737829]
[1725061677979,0.479072,59149.0,59143.0,0.00025347]
[1725061677980,0.084543,59144.0,59143.0,0.00025347]
[1725061678181,0.304543,59144.0,59143.0,0.00025347]
[1725061678783,0.398443,59144.0,59143.0,0.00025347]
[1725061679286,0.398443,59144.0,59143.0,0.09025347]
[1725061680077,0.399443,59144.0,59143.0,0.09025347]
[1725061680586,0.400443,59144.0,59143.0,0.09025347]
[1725061681193,0.400443,59144.0,59143.0,0.1170322]
[1725061681585,0.400443,59144.0,59143.0,0.2015772]
[1725061682293,0.354343,59144.0,59143.0,0.2015772]
[1725061683283,0.306543,59144.0,59143.0,0.2015772]
[1725061688187,0.222,59144.0,59143.0,0.2015772]
[1725061688686,0.222,59144.0,59143.0,0.2945772]
[1725061697892,0.222,59144.0,59143.0,0.4636672]
[1725061698203,0.493723,59158.0,59143.0,1.3172722]
[1725061698204,0.00088,59158.0,59143.0,1.3172722]